Workbook

Sheet Январь
P1: Январь | X1: Экономия | Y1: Базовая норма расхода на 100 км | Z1: Базовая норма расхода на 1 мото/час
A2: Общество с ограниченной ответственностью "Втормет Царицыно" | R2: 1-я пол. | S2: =A7 -> 2018-01-01 | T2: 2018-01-18 | U2: =ТС!E5 -> 500 | V2: =SUMIFS(Январь[Выдано топливо, литр],Январь[Дата],">="&$S$2,Январь[Дата],"<="&$T$2)+IF(MONTH(T2)<>MONTH(S2),INDIRECT(TEXT(A7-1,"ММММ")&"!F38")-SUM(INDIRECT(TEXT(A7-1,"ММММ")&"!V1:V2")))+SUMIFS($U$7:$U$37,Январь[Дата],">="&$S$2,Январь[Дата],"<="&$T$2)+IF(MONTH(T2)<>MONTH(S2),INDIRECT(TEXT(A7-1,"ММММ")&"!F38")-SUM(INDIRECT(TEXT(A7-1,"ММММ")&"!V1:V2"))) -> 330 | W2: =IF(V2=0,0,(SUMIFS($N$7:$N$37,$A$7:$A$37,">="&$S$2,$A$7:$A$37,"<="&$T$2))/(V2-U2+G7)) -> 1.0985 | X2: =SUMIFS(Январь[Отклонение от нормы (Перерасход(+), экономия(-)), литр],Январь[Дата],">="&$S$2,Январь[Дата],"<="&$T$2) -> -32.505 | Y2: =IF(Y4="Зима",VLOOKUP(Z4,Расчет[[Номер гос.регистрации / Заводской номер]:[Итога норма а/м "ЛЕТО"]],8,FALSE),VLOOKUP(Z4,Расчет[[Номер гос.регистрации / Заводской номер]:[Итога норма а/м "ЛЕТО"]],9,FALSE)) -> 51.546 | Z2: =IF(Y4="Зима",VLOOKUP(Z4,Расчет[[Номер гос.регистрации / Заводской номер]:[Итога норма а/м "ЛЕТО"]],13,FALSE),VLOOKUP(Z4,Расчет[[Номер гос.регистрации / Заводской номер]:[Итога норма а/м "ЛЕТО"]],14,FALSE)) -> 6.05
A3: Отчет водителя ломовоза с манипулятором | R3: 2-я пол. | S3: =T2+1 -> 2018-01-19 | T3: =INDEX(Январь[Дата],COUNT(Январь[Дата]))-T1 -> 2018-01-31 | U3: =ТС!E6 -> 500 | V3: =SUMIFS(Январь[Выдано топливо, литр],Январь[Дата],">="&$S$3,Январь[Дата],"<="&$T$3)+IF(MONTH(T3)<>MONTH(S3),INDIRECT(TEXT(A7-1,"ММММ")&"!F38")-SUM(INDIRECT(TEXT(A7-1,"ММММ")&"!V1:V2")))+SUMIFS($U$7:$U$37,Январь[Дата],">="&$S$3,Январь[Дата],"<="&$T$3)+IF(MONTH(T3)<>MONTH(S3),INDIRECT(TEXT(A7-1,"ММММ")&"!F38")-SUM(INDIRECT(TEXT(A7-1,"ММММ")&"!V1:V2"))) -> 752 | W3: =IF(V3=0,0,(SUMIFS($N$7:$N$37,$A$7:$A$37,">="&$S$3,$A$7:$A$37,"<="&$T$3))/(V3-U3+U3)) -> 1.10106117 | X3: =SUMIFS(Январь[Отклонение от нормы (Перерасход(+), экономия(-)), литр],Январь[Дата],">="&$S$3,Январь[Дата],"<="&$T$3) -> -75.998
H4: за | I4: 2018 | O4: т 056 вв 197 | S4: =IF(INDEX(Январь[Дата],COUNT(Январь[Дата]))=T3,"",T3+1) ->  | W4: =IFERROR(IF(S4="","",INDIRECT(TEXT(A7+40,"ММММ")&"!W2")),) ->  | Y4: Зима | Z4: Норма 1
A6: Дата | B6: ФИО водителя | C6: Показание одометра машины на начало дня, км | D6: Показание одометра машины на конец дня, км | E6: Пройдено за день, км | F6: Выдано топливо, литр | G6: Остаток топлива в баке на начало дня, литр | H6: Показание счетчика моточасов спецоборудования на начало дня, м/ч | I6: Показание счетчика моточасов спецоборудования на конец дня, м/ч | J6: Работа спецоборудования за день, м/ч | K6: Количество ходок | L6: Расход топлива на работу спецоборудования, литр | M6: Остаток топлива в баке на конец дня, литр | N6: Расход топлива по норме, литр | O6: Фактический расход топлива, литр | P6: Отклонение от нормы (Перерасход(+), экономия(-)), литр | R6: Дата | S6: Обнуление одометра, км | T6: Пройдено за день, км | U6: Выдано топливо, литр | V6: Обнуление счетчика моточасов спецоборудования, м/ч | W6: Работа спецоборудования за день, м/ч | X6: Расход топлива по норме, литр | Y6: Фактический расход топлива, литр | Z6: Дата
A7: =IFERROR(DATEVALUE((COUNT($A$6:A6)+1)&$P$1&$I$4),"") -> 2018-01-01 | C7: =ТС!C5 -> 209024 | D7: 209024 | E7: =Январь[[#This Row],[Показание одометра машины на конец дня, км]]-Январь[[#This Row],[Показание одометра машины на начало дня, км]]+T7 -> 0 | F7: =SUMPRODUCT([1]январь!$E$4:$E$153*([1]январь!$G$4:$G$153=$O$4)*([1]январь!$D$4:$D$153=Январь[[#This Row],[Дата]])) -> 0 | G7: =ТС!E5 -> 500 | H7: =ТС!D5 -> 620 | I7: 620 | J7: =IF(W7="",Январь[[#This Row],[Показание счетчика моточасов спецоборудования на конец дня, м/ч]],Январь[[#This Row],[Показание счетчика моточасов спецоборудования на конец дня, м/ч]]+1)-Январь[[#This Row],[Показание счетчика моточасов спецоборудования на начало дня, м/ч]] -> 0 | L7: =IF(Январь[[#This Row],[Работа спецоборудования за день, м/ч]]="","",Январь[[#This Row],[Работа спецоборудования за день, м/ч]]*$Z$2) -> 0 | M7: =IF(VLOOKUP([Дата],S$2:U$3,3),IFERROR(IF(U7="",Январь[[#This Row],[Выдано топливо, литр]],Январь[[#This Row],[Выдано топливо, литр]]+U7)+Январь[[#This Row],[Остаток топлива в баке на начало дня, литр]]-Январь[[#This Row],[Фактический расход топлива, литр]],""),"") -> 500 | N7: =ROUND((Январь[[#This Row],[Пройдено за день, км]]*0.01*$Y$2+Январь[[#This Row],[Расход топлива на работу спецоборудования, литр]]),3)+X7 -> 0 | O7: =ROUND(Январь[[#This Row],[Расход топлива по норме, литр]]/VLOOKUP([Дата],S$2:W$4,5),0)+Y7 -> 0 | P7: =IFERROR(Январь[[#This Row],[Фактический расход топлива, литр]]-Январь[[#This Row],[Расход топлива по норме, литр]],"") -> 0 | R7: =Январь[[#This Row],[Дата]] -> 2018-01-01 | Z7: =Январь[[#This Row],[Дата]] -> 2018-01-01
A8: =IFERROR(DATEVALUE((COUNT($A$6:A7)+1)&$P$1&$I$4),"") -> 2018-01-02 | C8: =IFERROR(IF(INDIRECT(TEXT(A7,"ММММ")&"!A7:A37")="","",IF(S7="",D7,S7)),"") -> 209024 | D8: 209024 | E8: =Январь[[#This Row],[Показание одометра машины на конец дня, км]]-Январь[[#This Row],[Показание одометра машины на начало дня, км]]+T8 -> 0 | F8: =SUMPRODUCT([1]январь!$E$4:$E$153*([1]январь!$G$4:$G$153=$O$4)*([1]январь!$D$4:$D$153=Январь[[#This Row],[Дата]])) -> 0 | G8: =IF(Январь[[#This Row],[Дата]]="","",M7) -> 500 | H8: =IFERROR(IF(INDIRECT(TEXT(A7,"ММММ")&"!A7:A37")="","",IF(V7="",I7,V7)),"") -> 620 | I8: 620 | J8: =IF(W8="",Январь[[#This Row],[Показание счетчика моточасов спецоборудования на конец дня, м/ч]],Январь[[#This Row],[Показание счетчика моточасов спецоборудования на конец дня, м/ч]]+1)-Январь[[#This Row],[Показание счетчика моточасов спецоборудования на начало дня, м/ч]] -> 0 | L8: =IF(Январь[[#This Row],[Работа спецоборудования за день, м/ч]]="","",Январь[[#This Row],[Работа спецоборудования за день, м/ч]]*$Z$2) -> 0 | M8: =IF(VLOOKUP([Дата],S$2:U$3,3),IFERROR(IF(U8="",Январь[[#This Row],[Выдано топливо, литр]],Январь[[#This Row],[Выдано топливо, литр]]+U8)+Январь[[#This Row],[Остаток топлива в баке на начало дня, литр]]-Январь[[#This Row],[Фактический расход топлива, литр]],""),"") -> 500 | N8: =ROUND((Январь[[#This Row],[Пройдено за день, км]]*0.01*$Y$2+Январь[[#This Row],[Расход топлива на работу спецоборудования, литр]]),3)+X8 -> 0 | O8: =ROUND(Январь[[#This Row],[Расход топлива по норме, литр]]/VLOOKUP([Дата],S$2:W$4,5),0)+Y8 -> 0 | P8: =IFERROR(Январь[[#This Row],[Фактический расход топлива, литр]]-Январь[[#This Row],[Расход топлива по норме, литр]],"") -> 0 | R8: =Январь[[#This Row],[Дата]] -> 2018-01-02 | Z8: =Январь[[#This Row],[Дата]] -> 2018-01-02
A9: =IFERROR(DATEVALUE((COUNT($A$6:A8)+1)&$P$1&$I$4),"") -> 2018-01-03 | C9: =IFERROR(IF(INDIRECT(TEXT(A8,"ММММ")&"!A7:A37")="","",IF(S8="",D8,S8)),"") -> 209024 | D9: 209024 | E9: =Январь[[#This Row],[Показание одометра машины на конец дня, км]]-Январь[[#This Row],[Показание одометра машины на начало дня, км]]+T9 -> 0 | F9: =SUMPRODUCT([1]январь!$E$4:$E$153*([1]январь!$G$4:$G$153=$O$4)*([1]январь!$D$4:$D$153=Январь[[#This Row],[Дата]])) -> 0 | G9: =IF(Январь[[#This Row],[Дата]]="","",M8) -> 500 | H9: =IFERROR(IF(INDIRECT(TEXT(A8,"ММММ")&"!A7:A37")="","",IF(V8="",I8,V8)),"") -> 620 | I9: 620 | J9: =IF(W9="",Январь[[#This Row],[Показание счетчика моточасов спецоборудования на конец дня, м/ч]],Январь[[#This Row],[Показание счетчика моточасов спецоборудования на конец дня, м/ч]]+1)-Январь[[#This Row],[Показание счетчика моточасов спецоборудования на начало дня, м/ч]] -> 0 | L9: =IF(Январь[[#This Row],[Работа спецоборудования за день, м/ч]]="","",Январь[[#This Row],[Работа спецоборудования за день, м/ч]]*$Z$2) -> 0 | M9: =IF(VLOOKUP([Дата],S$2:U$3,3),IFERROR(IF(U9="",Январь[[#This Row],[Выдано топливо, литр]],Январь[[#This Row],[Выдано топливо, литр]]+U9)+Январь[[#This Row],[Остаток топлива в баке на начало дня, литр]]-Январь[[#This Row],[Фактический расход топлива, литр]],""),"") -> 500 | N9: =ROUND((Январь[[#This Row],[Пройдено за день, км]]*0.01*$Y$2+Январь[[#This Row],[Расход топлива на работу спецоборудования, литр]]),3)+X9 -> 0 | O9: =ROUND(Январь[[#This Row],[Расход топлива по норме, литр]]/VLOOKUP([Дата],S$2:W$4,5),0)+Y9 -> 0 | P9: =IFERROR(Январь[[#This Row],[Фактический расход топлива, литр]]-Январь[[#This Row],[Расход топлива по норме, литр]],"") -> 0 | R9: =Январь[[#This Row],[Дата]] -> 2018-01-03 | Z9: =Январь[[#This Row],[Дата]] -> 2018-01-03
A10: =IFERROR(DATEVALUE((COUNT($A$6:A9)+1)&$P$1&$I$4),"") -> 2018-01-04 | C10: 209024 | D10: 209024 | E10: =Январь[[#This Row],[Показание одометра машины на конец дня, км]]-Январь[[#This Row],[Показание одометра машины на начало дня, км]]+T10 -> 0 | F10: =SUMPRODUCT([1]январь!$E$4:$E$153*([1]январь!$G$4:$G$153=$O$4)*([1]январь!$D$4:$D$153=Январь[[#This Row],[Дата]])) -> 0 | G10: =IF(Январь[[#This Row],[Дата]]="","",M9) -> 500 | H10: 620 | I10: 620 | J10: =IF(W10="",Январь[[#This Row],[Показание счетчика моточасов спецоборудования на конец дня, м/ч]],Январь[[#This Row],[Показание счетчика моточасов спецоборудования на конец дня, м/ч]]+1)-Январь[[#This Row],[Показание счетчика моточасов спецоборудования на начало дня, м/ч]] -> 0 | L10: =IF(Январь[[#This Row],[Работа спецоборудования за день, м/ч]]="","",Январь[[#This Row],[Работа спецоборудования за день, м/ч]]*$Z$2) -> 0 | M10: =IF(VLOOKUP([Дата],S$2:U$3,3),IFERROR(IF(U10="",Январь[[#This Row],[Выдано топливо, литр]],Январь[[#This Row],[Выдано топливо, литр]]+U10)+Январь[[#This Row],[Остаток топлива в баке на начало дня, литр]]-Январь[[#This Row],[Фактический расход топлива, литр]],""),"") -> 500 | N10: =ROUND((Январь[[#This Row],[Пройдено за день, км]]*0.01*$Y$2+Январь[[#This Row],[Расход топлива на работу спецоборудования, литр]]),3)+X10 -> 0 | O10: =ROUND(Январь[[#This Row],[Расход топлива по норме, литр]]/VLOOKUP([Дата],S$2:W$4,5),0)+Y10 -> 0 | P10: =IFERROR(Январь[[#This Row],[Фактический расход топлива, литр]]-Январь[[#This Row],[Расход топлива по норме, литр]],"") -> 0 | R10: =Январь[[#This Row],[Дата]] -> 2018-01-04 | Z10: =Январь[[#This Row],[Дата]] -> 2018-01-04
A11: =IFERROR(DATEVALUE((COUNT($A$6:A10)+1)&$P$1&$I$4),"") -> 2018-01-05 | C11: 209024 | D11: 209024 | E11: =Январь[[#This Row],[Показание одометра машины на конец дня, км]]-Январь[[#This Row],[Показание одометра машины на начало дня, км]]+T11 -> 0 | F11: =SUMPRODUCT([1]январь!$E$4:$E$153*([1]январь!$G$4:$G$153=$O$4)*([1]январь!$D$4:$D$153=Январь[[#This Row],[Дата]])) -> 0 | G11: =IF(Январь[[#This Row],[Дата]]="","",M10) -> 500 | H11: 620 | I11: 620 | J11: =IF(W11="",Январь[[#This Row],[Показание счетчика моточасов спецоборудования на конец дня, м/ч]],Январь[[#This Row],[Показание счетчика моточасов спецоборудования на конец дня, м/ч]]+1)-Январь[[#This Row],[Показание счетчика моточасов спецоборудования на начало дня, м/ч]] -> 0 | L11: =IF(Январь[[#This Row],[Работа спецоборудования за день, м/ч]]="","",Январь[[#This Row],[Работа спецоборудования за день, м/ч]]*$Z$2) -> 0 | M11: =IF(VLOOKUP([Дата],S$2:U$3,3),IFERROR(IF(U11="",Январь[[#This Row],[Выдано топливо, литр]],Январь[[#This Row],[Выдано топливо, литр]]+U11)+Январь[[#This Row],[Остаток топлива в баке на начало дня, литр]]-Январь[[#This Row],[Фактический расход топлива, литр]],""),"") -> 500 | N11: =ROUND((Январь[[#This Row],[Пройдено за день, км]]*0.01*$Y$2+Январь[[#This Row],[Расход топлива на работу спецоборудования, литр]]),3)+X11 -> 0 | O11: =ROUND(Январь[[#This Row],[Расход топлива по норме, литр]]/VLOOKUP([Дата],S$2:W$4,5),0)+Y11 -> 0 | P11: =IFERROR(Январь[[#This Row],[Фактический расход топлива, литр]]-Январь[[#This Row],[Расход топлива по норме, литр]],"") -> 0 | R11: =Январь[[#This Row],[Дата]] -> 2018-01-05 | Z11: =Январь[[#This Row],[Дата]] -> 2018-01-05
A12: =IFERROR(DATEVALUE((COUNT($A$6:A11)+1)&$P$1&$I$4),"") -> 2018-01-06 | C12: 209024 | D12: 209024 | E12: =Январь[[#This Row],[Показание одометра машины на конец дня, км]]-Январь[[#This Row],[Показание одометра машины на начало дня, км]]+T12 -> 0 | F12: =SUMPRODUCT([1]январь!$E$4:$E$153*([1]январь!$G$4:$G$153=$O$4)*([1]январь!$D$4:$D$153=Январь[[#This Row],[Дата]])) -> 0 | G12: =IF(Январь[[#This Row],[Дата]]="","",M11) -> 500 | H12: 620 | I12: 620 | J12: =IF(W12="",Январь[[#This Row],[Показание счетчика моточасов спецоборудования на конец дня, м/ч]],Январь[[#This Row],[Показание счетчика моточасов спецоборудования на конец дня, м/ч]]+1)-Январь[[#This Row],[Показание счетчика моточасов спецоборудования на начало дня, м/ч]] -> 0 | L12: =IF(Январь[[#This Row],[Работа спецоборудования за день, м/ч]]="","",Январь[[#This Row],[Работа спецоборудования за день, м/ч]]*$Z$2) -> 0 | M12: =IF(VLOOKUP([Дата],S$2:U$3,3),IFERROR(IF(U12="",Январь[[#This Row],[Выдано топливо, литр]],Январь[[#This Row],[Выдано топливо, литр]]+U12)+Январь[[#This Row],[Остаток топлива в баке на начало дня, литр]]-Январь[[#This Row],[Фактический расход топлива, литр]],""),"") -> 500 | N12: =ROUND((Январь[[#This Row],[Пройдено за день, км]]*0.01*$Y$2+Январь[[#This Row],[Расход топлива на работу спецоборудования, литр]]),3)+X12 -> 0 | O12: =ROUND(Январь[[#This Row],[Расход топлива по норме, литр]]/VLOOKUP([Дата],S$2:W$4,5),0)+Y12 -> 0 | P12: =IFERROR(Январь[[#This Row],[Фактический расход топлива, литр]]-Январь[[#This Row],[Расход топлива по норме, литр]],"") -> 0 | R12: =Январь[[#This Row],[Дата]] -> 2018-01-06 | Z12: =Январь[[#This Row],[Дата]] -> 2018-01-06
A13: =IFERROR(DATEVALUE((COUNT($A$6:A12)+1)&$P$1&$I$4),"") -> 2018-01-07 | C13: 209024 | D13: 209024 | E13: =Январь[[#This Row],[Показание одометра машины на конец дня, км]]-Январь[[#This Row],[Показание одометра машины на начало дня, км]]+T13 -> 0 | F13: =SUMPRODUCT([1]январь!$E$4:$E$153*([1]январь!$G$4:$G$153=$O$4)*([1]январь!$D$4:$D$153=Январь[[#This Row],[Дата]])) -> 0 | G13: =IF(Январь[[#This Row],[Дата]]="","",M12) -> 500 | H13: 620 | I13: 620 | J13: =IF(W13="",Январь[[#This Row],[Показание счетчика моточасов спецоборудования на конец дня, м/ч]],Январь[[#This Row],[Показание счетчика моточасов спецоборудования на конец дня, м/ч]]+1)-Январь[[#This Row],[Показание счетчика моточасов спецоборудования на начало дня, м/ч]] -> 0 | L13: =IF(Январь[[#This Row],[Работа спецоборудования за день, м/ч]]="","",Январь[[#This Row],[Работа спецоборудования за день, м/ч]]*$Z$2) -> 0 | M13: =IF(VLOOKUP([Дата],S$2:U$3,3),IFERROR(IF(U13="",Январь[[#This Row],[Выдано топливо, литр]],Январь[[#This Row],[Выдано топливо, литр]]+U13)+Январь[[#This Row],[Остаток топлива в баке на начало дня, литр]]-Январь[[#This Row],[Фактический расход топлива, литр]],""),"") -> 500 | N13: =ROUND((Январь[[#This Row],[Пройдено за день, км]]*0.01*$Y$2+Январь[[#This Row],[Расход топлива на работу спецоборудования, литр]]),3)+X13 -> 0 | O13: =ROUND(Январь[[#This Row],[Расход топлива по норме, литр]]/VLOOKUP([Дата],S$2:W$4,5),0)+Y13 -> 0 | P13: =IFERROR(Январь[[#This Row],[Фактический расход топлива, литр]]-Январь[[#This Row],[Расход топлива по норме, литр]],"") -> 0 | R13: =Январь[[#This Row],[Дата]] -> 2018-01-07 | Z13: =Январь[[#This Row],[Дата]] -> 2018-01-07
A14: =IFERROR(DATEVALUE((COUNT($A$6:A13)+1)&$P$1&$I$4),"") -> 2018-01-08 | C14: 209024 | D14: 209024 | E14: =Январь[[#This Row],[Показание одометра машины на конец дня, км]]-Январь[[#This Row],[Показание одометра машины на начало дня, км]]+T14 -> 0 | F14: =SUMPRODUCT([1]январь!$E$4:$E$153*([1]январь!$G$4:$G$153=$O$4)*([1]январь!$D$4:$D$153=Январь[[#This Row],[Дата]])) -> 0 | G14: =IF(Январь[[#This Row],[Дата]]="","",M13) -> 500 | H14: 620 | I14: 620 | J14: =IF(W14="",Январь[[#This Row],[Показание счетчика моточасов спецоборудования на конец дня, м/ч]],Январь[[#This Row],[Показание счетчика моточасов спецоборудования на конец дня, м/ч]]+1)-Январь[[#This Row],[Показание счетчика моточасов спецоборудования на начало дня, м/ч]] -> 0 | L14: =IF(Январь[[#This Row],[Работа спецоборудования за день, м/ч]]="","",Январь[[#This Row],[Работа спецоборудования за день, м/ч]]*$Z$2) -> 0 | M14: =IF(VLOOKUP([Дата],S$2:U$3,3),IFERROR(IF(U14="",Январь[[#This Row],[Выдано топливо, литр]],Январь[[#This Row],[Выдано топливо, литр]]+U14)+Январь[[#This Row],[Остаток топлива в баке на начало дня, литр]]-Январь[[#This Row],[Фактический расход топлива, литр]],""),"") -> 500 | N14: =ROUND((Январь[[#This Row],[Пройдено за день, км]]*0.01*$Y$2+Январь[[#This Row],[Расход топлива на работу спецоборудования, литр]]),3)+X14 -> 0 | O14: =ROUND(Январь[[#This Row],[Расход топлива по норме, литр]]/VLOOKUP([Дата],S$2:W$4,5),0)+Y14 -> 0 | P14: =IFERROR(Январь[[#This Row],[Фактический расход топлива, литр]]-Январь[[#This Row],[Расход топлива по норме, литр]],"") -> 0 | R14: =Январь[[#This Row],[Дата]] -> 2018-01-08 | Z14: =Январь[[#This Row],[Дата]] -> 2018-01-08
A15: =IFERROR(DATEVALUE((COUNT($A$6:A14)+1)&$P$1&$I$4),"") -> 2018-01-09 | C15: 209024 | D15: 209024 | E15: =Январь[[#This Row],[Показание одометра машины на конец дня, км]]-Январь[[#This Row],[Показание одометра машины на начало дня, км]]+T15 -> 0 | F15: =SUMPRODUCT([1]январь!$E$4:$E$153*([1]январь!$G$4:$G$153=$O$4)*([1]январь!$D$4:$D$153=Январь[[#This Row],[Дата]])) -> 0 | G15: =IF(Январь[[#This Row],[Дата]]="","",M14) -> 500 | H15: 620 | I15: 620 | J15: =IF(W15="",Январь[[#This Row],[Показание счетчика моточасов спецоборудования на конец дня, м/ч]],Январь[[#This Row],[Показание счетчика моточасов спецоборудования на конец дня, м/ч]]+1)-Январь[[#This Row],[Показание счетчика моточасов спецоборудования на начало дня, м/ч]] -> 0 | K15: 0 | L15: =IF(Январь[[#This Row],[Работа спецоборудования за день, м/ч]]="","",Январь[[#This Row],[Работа спецоборудования за день, м/ч]]*$Z$2) -> 0 | M15: =IF(VLOOKUP([Дата],S$2:U$3,3),IFERROR(IF(U15="",Январь[[#This Row],[Выдано топливо, литр]],Январь[[#This Row],[Выдано топливо, литр]]+U15)+Январь[[#This Row],[Остаток топлива в баке на начало дня, литр]]-Январь[[#This Row],[Фактический расход топлива, литр]],""),"") -> 500 | N15: =ROUND((Январь[[#This Row],[Пройдено за день, км]]*0.01*$Y$2+Январь[[#This Row],[Расход топлива на работу спецоборудования, литр]]),3)+X15 -> 0 | O15: =ROUND(Январь[[#This Row],[Расход топлива по норме, литр]]/VLOOKUP([Дата],S$2:W$4,5),0)+Y15 -> 0 | P15: =IFERROR(Январь[[#This Row],[Фактический расход топлива, литр]]-Январь[[#This Row],[Расход топлива по норме, литр]],"") -> 0 | R15: =Январь[[#This Row],[Дата]] -> 2018-01-09 | Z15: =Январь[[#This Row],[Дата]] -> 2018-01-09
A16: =IFERROR(DATEVALUE((COUNT($A$6:A15)+1)&$P$1&$I$4),"") -> 2018-01-10 | B16: Никляев В.А. | C16: 209024 | D16: 209059 | E16: =Январь[[#This Row],[Показание одометра машины на конец дня, км]]-Январь[[#This Row],[Показание одометра машины на начало дня, км]]+T16 -> 35 | F16: =SUMPRODUCT([1]январь!$E$4:$E$153*([1]январь!$G$4:$G$153=$O$4)*([1]январь!$D$4:$D$153=Январь[[#This Row],[Дата]])) -> 0 | G16: =IF(Январь[[#This Row],[Дата]]="","",M15) -> 500 | H16: 620 | I16: 620 | J16: =IF(W16="",Январь[[#This Row],[Показание счетчика моточасов спецоборудования на конец дня, м/ч]],Январь[[#This Row],[Показание счетчика моточасов спецоборудования на конец дня, м/ч]]+1)-Январь[[#This Row],[Показание счетчика моточасов спецоборудования на начало дня, м/ч]] -> 0 | K16: 1 | L16: =IF(Январь[[#This Row],[Работа спецоборудования за день, м/ч]]="","",Январь[[#This Row],[Работа спецоборудования за день, м/ч]]*$Z$2) -> 0 | M16: =IF(VLOOKUP([Дата],S$2:U$3,3),IFERROR(IF(U16="",Январь[[#This Row],[Выдано топливо, литр]],Январь[[#This Row],[Выдано топливо, литр]]+U16)+Январь[[#This Row],[Остаток топлива в баке на начало дня, литр]]-Январь[[#This Row],[Фактический расход топлива, литр]],""),"") -> 484 | N16: =ROUND((Январь[[#This Row],[Пройдено за день, км]]*0.01*$Y$2+Январь[[#This Row],[Расход топлива на работу спецоборудования, литр]]),3)+X16 -> 18.041 | O16: =ROUND(Январь[[#This Row],[Расход топлива по норме, литр]]/VLOOKUP([Дата],S$2:W$4,5),0)+Y16 -> 16 | P16: =IFERROR(Январь[[#This Row],[Фактический расход топлива, литр]]-Январь[[#This Row],[Расход топлива по норме, литр]],"") -> -2.041 | R16: =Январь[[#This Row],[Дата]] -> 2018-01-10 | Z16: =Январь[[#This Row],[Дата]] -> 2018-01-10
A17: =IFERROR(DATEVALUE((COUNT($A$6:A16)+1)&$P$1&$I$4),"") -> 2018-01-11 | B17: Никляев В.А. | C17: 209059 | D17: 209084 | E17: =Январь[[#This Row],[Показание одометра машины на конец дня, км]]-Январь[[#This Row],[Показание одометра машины на начало дня, км]]+T17 -> 25 | F17: =SUMPRODUCT([1]январь!$E$4:$E$153*([1]январь!$G$4:$G$153=$O$4)*([1]январь!$D$4:$D$153=Январь[[#This Row],[Дата]])) -> 0 | G17: =IF(Январь[[#This Row],[Дата]]="","",M16) -> 484 | H17: 620 | I17: 622 | J17: =IF(W17="",Январь[[#This Row],[Показание счетчика моточасов спецоборудования на конец дня, м/ч]],Январь[[#This Row],[Показание счетчика моточасов спецоборудования на конец дня, м/ч]]+1)-Январь[[#This Row],[Показание счетчика моточасов спецоборудования на начало дня, м/ч]] -> 2 | K17: 1 | L17: =IF(Январь[[#This Row],[Работа спецоборудования за день, м/ч]]="","",Январь[[#This Row],[Работа спецоборудования за день, м/ч]]*$Z$2) -> 12.1 | M17: =IF(VLOOKUP([Дата],S$2:U$3,3),IFERROR(IF(U17="",Январь[[#This Row],[Выдано топливо, литр]],Январь[[#This Row],[Выдано топливо, литр]]+U17)+Январь[[#This Row],[Остаток топлива в баке на начало дня, литр]]-Январь[[#This Row],[Фактический расход топлива, литр]],""),"") -> 461 | N17: =ROUND((Январь[[#This Row],[Пройдено за день, км]]*0.01*$Y$2+Январь[[#This Row],[Расход топлива на работу спецоборудования, литр]]),3)+X17 -> 24.987 | O17: =ROUND(Январь[[#This Row],[Расход топлива по норме, литр]]/VLOOKUP([Дата],S$2:W$4,5),0)+Y17 -> 23 | P17: =IFERROR(Январь[[#This Row],[Фактический расход топлива, литр]]-Январь[[#This Row],[Расход топлива по норме, литр]],"") -> -1.987 | R17: =Январь[[#This Row],[Дата]] -> 2018-01-11 | Z17: =Январь[[#This Row],[Дата]] -> 2018-01-11
A18: =IFERROR(DATEVALUE((COUNT($A$6:A17)+1)&$P$1&$I$4),"") -> 2018-01-12 | B18: Никляев В.А. | C18: 209084 | D18: 209111 | E18: =Январь[[#This Row],[Показание одометра машины на конец дня, км]]-Январь[[#This Row],[Показание одометра машины на начало дня, км]]+T18 -> 27 | F18: =SUMPRODUCT([1]январь!$E$4:$E$153*([1]январь!$G$4:$G$153=$O$4)*([1]январь!$D$4:$D$153=Январь[[#This Row],[Дата]])) -> 0 | G18: =IF(Январь[[#This Row],[Дата]]="","",M17) -> 461 | H18: 622 | I18: 624 | J18: =IF(W18="",Январь[[#This Row],[Показание счетчика моточасов спецоборудования на конец дня, м/ч]],Январь[[#This Row],[Показание счетчика моточасов спецоборудования на конец дня, м/ч]]+1)-Январь[[#This Row],[Показание счетчика моточасов спецоборудования на начало дня, м/ч]] -> 2 | K18: 1 | L18: =IF(Январь[[#This Row],[Работа спецоборудования за день, м/ч]]="","",Январь[[#This Row],[Работа спецоборудования за день, м/ч]]*$Z$2) -> 12.1 | M18: =IF(VLOOKUP([Дата],S$2:U$3,3),IFERROR(IF(U18="",Январь[[#This Row],[Выдано топливо, литр]],Январь[[#This Row],[Выдано топливо, литр]]+U18)+Январь[[#This Row],[Остаток топлива в баке на начало дня, литр]]-Январь[[#This Row],[Фактический расход топлива, литр]],""),"") -> 437 | N18: =ROUND((Январь[[#This Row],[Пройдено за день, км]]*0.01*$Y$2+Январь[[#This Row],[Расход топлива на работу спецоборудования, литр]]),3)+X18 -> 26.017 | O18: =ROUND(Январь[[#This Row],[Расход топлива по норме, литр]]/VLOOKUP([Дата],S$2:W$4,5),0)+Y18 -> 24 | P18: =IFERROR(Январь[[#This Row],[Фактический расход топлива, литр]]-Январь[[#This Row],[Расход топлива по норме, литр]],"") -> -2.017 | R18: =Январь[[#This Row],[Дата]] -> 2018-01-12 | Z18: =Январь[[#This Row],[Дата]] -> 2018-01-12
A19: =IFERROR(DATEVALUE((COUNT($A$6:A18)+1)&$P$1&$I$4),"") -> 2018-01-13 | B19: Никляев В.А. | C19: 209111 | D19: 209168 | E19: =Январь[[#This Row],[Показание одометра машины на конец дня, км]]-Январь[[#This Row],[Показание одометра машины на начало дня, км]]+T19 -> 57 | F19: =SUMPRODUCT([1]январь!$E$4:$E$153*([1]январь!$G$4:$G$153=$O$4)*([1]январь!$D$4:$D$153=Январь[[#This Row],[Дата]])) -> 0 | G19: =IF(Январь[[#This Row],[Дата]]="","",M18) -> 437 | H19: 624 | I19: 626 | J19: =IF(W19="",Январь[[#This Row],[Показание счетчика моточасов спецоборудования на конец дня, м/ч]],Январь[[#This Row],[Показание счетчика моточасов спецоборудования на конец дня, м/ч]]+1)-Январь[[#This Row],[Показание счетчика моточасов спецоборудования на начало дня, м/ч]] -> 2 | K19: 1 | L19: =IF(Январь[[#This Row],[Работа спецоборудования за день, м/ч]]="","",Январь[[#This Row],[Работа спецоборудования за день, м/ч]]*$Z$2) -> 12.1 | M19: =IF(VLOOKUP([Дата],S$2:U$3,3),IFERROR(IF(U19="",Январь[[#This Row],[Выдано топливо, литр]],Январь[[#This Row],[Выдано топливо, литр]]+U19)+Январь[[#This Row],[Остаток топлива в баке на начало дня, литр]]-Январь[[#This Row],[Фактический расход топлива, литр]],""),"") -> 399 | N19: =ROUND((Январь[[#This Row],[Пройдено за день, км]]*0.01*$Y$2+Январь[[#This Row],[Расход топлива на работу спецоборудования, литр]]),3)+X19 -> 41.481 | O19: =ROUND(Январь[[#This Row],[Расход топлива по норме, литр]]/VLOOKUP([Дата],S$2:W$4,5),0)+Y19 -> 38 | P19: =IFERROR(Январь[[#This Row],[Фактический расход топлива, литр]]-Январь[[#This Row],[Расход топлива по норме, литр]],"") -> -3.481 | R19: =Январь[[#This Row],[Дата]] -> 2018-01-13 | Z19: =Январь[[#This Row],[Дата]] -> 2018-01-13
A20: =IFERROR(DATEVALUE((COUNT($A$6:A19)+1)&$P$1&$I$4),"") -> 2018-01-14 | B20: Никляев В.А. | C20: 209168 | D20: 209208 | E20: =Январь[[#This Row],[Показание одометра машины на конец дня, км]]-Январь[[#This Row],[Показание одометра машины на начало дня, км]]+T20 -> 40 | F20: =SUMPRODUCT([1]январь!$E$4:$E$153*([1]январь!$G$4:$G$153=$O$4)*([1]январь!$D$4:$D$153=Январь[[#This Row],[Дата]])) -> 0 | G20: =IF(Январь[[#This Row],[Дата]]="","",M19) -> 399 | H20: 626 | I20: 628 | J20: =IF(W20="",Январь[[#This Row],[Показание счетчика моточасов спецоборудования на конец дня, м/ч]],Январь[[#This Row],[Показание счетчика моточасов спецоборудования на конец дня, м/ч]]+1)-Январь[[#This Row],[Показание счетчика моточасов спецоборудования на начало дня, м/ч]] -> 2 | K20: 1 | L20: =IF(Январь[[#This Row],[Работа спецоборудования за день, м/ч]]="","",Январь[[#This Row],[Работа спецоборудования за день, м/ч]]*$Z$2) -> 12.1 | M20: =IF(VLOOKUP([Дата],S$2:U$3,3),IFERROR(IF(U20="",Январь[[#This Row],[Выдано топливо, литр]],Январь[[#This Row],[Выдано топливо, литр]]+U20)+Январь[[#This Row],[Остаток топлива в баке на начало дня, литр]]-Январь[[#This Row],[Фактический расход топлива, литр]],""),"") -> 369 | N20: =ROUND((Январь[[#This Row],[Пройдено за день, км]]*0.01*$Y$2+Январь[[#This Row],[Расход топлива на работу спецоборудования, литр]]),3)+X20 -> 32.718 | O20: =ROUND(Январь[[#This Row],[Расход топлива по норме, литр]]/VLOOKUP([Дата],S$2:W$4,5),0)+Y20 -> 30 | P20: =IFERROR(Январь[[#This Row],[Фактический расход топлива, литр]]-Январь[[#This Row],[Расход топлива по норме, литр]],"") -> -2.718 | R20: =Январь[[#This Row],[Дата]] -> 2018-01-14 | Z20: =Январь[[#This Row],[Дата]] -> 2018-01-14
A21: =IFERROR(DATEVALUE((COUNT($A$6:A20)+1)&$P$1&$I$4),"") -> 2018-01-15 | B21: Никляев В.А. | C21: 209208 | D21: 209221 | E21: =Январь[[#This Row],[Показание одометра машины на конец дня, км]]-Январь[[#This Row],[Показание одометра машины на начало дня, км]]+T21 -> 13 | F21: =SUMPRODUCT([1]январь!$E$4:$E$153*([1]январь!$G$4:$G$153=$O$4)*([1]январь!$D$4:$D$153=Январь[[#This Row],[Дата]])) -> 0 | G21: =IF(Январь[[#This Row],[Дата]]="","",M20) -> 369 | H21: 628 | I21: 630 | J21: =IF(W21="",Январь[[#This Row],[Показание счетчика моточасов спецоборудования на конец дня, м/ч]],Январь[[#This Row],[Показание счетчика моточасов спецоборудования на конец дня, м/ч]]+1)-Январь[[#This Row],[Показание счетчика моточасов спецоборудования на начало дня, м/ч]] -> 2 | K21: 1 | L21: =IF(Январь[[#This Row],[Работа спецоборудования за день, м/ч]]="","",Январь[[#This Row],[Работа спецоборудования за день, м/ч]]*$Z$2) -> 12.1 | M21: =IF(VLOOKUP([Дата],S$2:U$3,3),IFERROR(IF(U21="",Январь[[#This Row],[Выдано топливо, литр]],Январь[[#This Row],[Выдано топливо, литр]]+U21)+Январь[[#This Row],[Остаток топлива в баке на начало дня, литр]]-Январь[[#This Row],[Фактический расход топлива, литр]],""),"") -> 352 | N21: =ROUND((Январь[[#This Row],[Пройдено за день, км]]*0.01*$Y$2+Январь[[#This Row],[Расход топлива на работу спецоборудования, литр]]),3)+X21 -> 18.801 | O21: =ROUND(Январь[[#This Row],[Расход топлива по норме, литр]]/VLOOKUP([Дата],S$2:W$4,5),0)+Y21 -> 17 | P21: =IFERROR(Январь[[#This Row],[Фактический расход топлива, литр]]-Январь[[#This Row],[Расход топлива по норме, литр]],"") -> -1.801 | R21: =Январь[[#This Row],[Дата]] -> 2018-01-15 | Z21: =Январь[[#This Row],[Дата]] -> 2018-01-15
A22: =IFERROR(DATEVALUE((COUNT($A$6:A21)+1)&$P$1&$I$4),"") -> 2018-01-16 | B22: Никляев В.А. | C22: 209221 | D22: 209236 | E22: =Январь[[#This Row],[Показание одометра машины на конец дня, км]]-Январь[[#This Row],[Показание одометра машины на начало дня, км]]+T22 -> 15 | F22: =SUMPRODUCT([1]январь!$E$4:$E$153*([1]январь!$G$4:$G$153=$O$4)*([1]январь!$D$4:$D$153=Январь[[#This Row],[Дата]])) -> 0 | G22: =IF(Январь[[#This Row],[Дата]]="","",M21) -> 352 | H22: 630 | I22: 633 | J22: =IF(W22="",Январь[[#This Row],[Показание счетчика моточасов спецоборудования на конец дня, м/ч]],Январь[[#This Row],[Показание счетчика моточасов спецоборудования на конец дня, м/ч]]+1)-Январь[[#This Row],[Показание счетчика моточасов спецоборудования на начало дня, м/ч]] -> 3 | K22: 2 | L22: =IF(Январь[[#This Row],[Работа спецоборудования за день, м/ч]]="","",Январь[[#This Row],[Работа спецоборудования за день, м/ч]]*$Z$2) -> 18.15 | M22: =IF(VLOOKUP([Дата],S$2:U$3,3),IFERROR(IF(U22="",Январь[[#This Row],[Выдано топливо, литр]],Январь[[#This Row],[Выдано топливо, литр]]+U22)+Январь[[#This Row],[Остаток топлива в баке на начало дня, литр]]-Январь[[#This Row],[Фактический расход топлива, литр]],""),"") -> 328 | N22: =ROUND((Январь[[#This Row],[Пройдено за день, км]]*0.01*$Y$2+Январь[[#This Row],[Расход топлива на работу спецоборудования, литр]]),3)+X22 -> 25.882 | O22: =ROUND(Январь[[#This Row],[Расход топлива по норме, литр]]/VLOOKUP([Дата],S$2:W$4,5),0)+Y22 -> 24 | P22: =IFERROR(Январь[[#This Row],[Фактический расход топлива, литр]]-Январь[[#This Row],[Расход топлива по норме, литр]],"") -> -1.882 | R22: =Январь[[#This Row],[Дата]] -> 2018-01-16 | Z22: =Январь[[#This Row],[Дата]] -> 2018-01-16
A23: =IFERROR(DATEVALUE((COUNT($A$6:A22)+1)&$P$1&$I$4),"") -> 2018-01-17 | B23: Никляев В.А. | C23: 209236 | D23: 209489 | E23: =Январь[[#This Row],[Показание одометра машины на конец дня, км]]-Январь[[#This Row],[Показание одометра машины на начало дня, км]]+T23 -> 253 | F23: =SUMPRODUCT([1]январь!$E$4:$E$153*([1]январь!$G$4:$G$153=$O$4)*([1]январь!$D$4:$D$153=Январь[[#This Row],[Дата]])) -> 0 | G23: =IF(Январь[[#This Row],[Дата]]="","",M22) -> 328 | H23: 633 | I23: 636 | J23: =IF(W23="",Январь[[#This Row],[Показание счетчика моточасов спецоборудования на конец дня, м/ч]],Январь[[#This Row],[Показание счетчика моточасов спецоборудования на конец дня, м/ч]]+1)-Январь[[#This Row],[Показание счетчика моточасов спецоборудования на начало дня, м/ч]] -> 3 | K23: 3 | L23: =IF(Январь[[#This Row],[Работа спецоборудования за день, м/ч]]="","",Январь[[#This Row],[Работа спецоборудования за день, м/ч]]*$Z$2) -> 18.15 | M23: =IF(VLOOKUP([Дата],S$2:U$3,3),IFERROR(IF(U23="",Январь[[#This Row],[Выдано топливо, литр]],Январь[[#This Row],[Выдано топливо, литр]]+U23)+Январь[[#This Row],[Остаток топлива в баке на начало дня, литр]]-Январь[[#This Row],[Фактический расход топлива, литр]],""),"") -> 192 | N23: =ROUND((Январь[[#This Row],[Пройдено за день, км]]*0.01*$Y$2+Январь[[#This Row],[Расход топлива на работу спецоборудования, литр]]),3)+X23 -> 148.561 | O23: =ROUND(Январь[[#This Row],[Расход топлива по норме, литр]]/VLOOKUP([Дата],S$2:W$4,5),0)+Y23 -> 136 | P23: =IFERROR(Январь[[#This Row],[Фактический расход топлива, литр]]-Январь[[#This Row],[Расход топлива по норме, литр]],"") -> -12.561 | R23: =Январь[[#This Row],[Дата]] -> 2018-01-17 | Y23: 1 | Z23: =Январь[[#This Row],[Дата]] -> 2018-01-17
A24: =IFERROR(DATEVALUE((COUNT($A$6:A23)+1)&$P$1&$I$4),"") -> 2018-01-18 | B24: Никляев В.А. | C24: 209489 | D24: 209516 | E24: =Январь[[#This Row],[Показание одометра машины на конец дня, км]]-Январь[[#This Row],[Показание одометра машины на начало дня, км]]+T24 -> 27 | F24: =SUMPRODUCT([1]январь!$E$4:$E$153*([1]январь!$G$4:$G$153=$O$4)*([1]январь!$D$4:$D$153=Январь[[#This Row],[Дата]])) -> 380 | G24: =IF(Январь[[#This Row],[Дата]]="","",M23) -> 192 | H24: 636 | I24: 638 | J24: =IF(W24="",Январь[[#This Row],[Показание счетчика моточасов спецоборудования на конец дня, м/ч]],Январь[[#This Row],[Показание счетчика моточасов спецоборудования на конец дня, м/ч]]+1)-Январь[[#This Row],[Показание счетчика моточасов спецоборудования на начало дня, м/ч]] -> 2 | K24: 1 | L24: =IF(Январь[[#This Row],[Работа спецоборудования за день, м/ч]]="","",Январь[[#This Row],[Работа спецоборудования за день, м/ч]]*$Z$2) -> 12.1 | M24: =IF(VLOOKUP([Дата],S$2:U$3,3),IFERROR(IF(U24="",Январь[[#This Row],[Выдано топливо, литр]],Январь[[#This Row],[Выдано топливо, литр]]+U24)+Январь[[#This Row],[Остаток топлива в баке на начало дня, литр]]-Январь[[#This Row],[Фактический расход топлива, литр]],""),"") -> 500 | N24: =ROUND((Январь[[#This Row],[Пройдено за день, км]]*0.01*$Y$2+Январь[[#This Row],[Расход топлива на работу спецоборудования, литр]]),3)+X24 -> 26.017 | O24: =ROUND(Январь[[#This Row],[Расход топлива по норме, литр]]/VLOOKUP([Дата],S$2:W$4,5),0)+Y24 -> 22 | P24: =IFERROR(Январь[[#This Row],[Фактический расход топлива, литр]]-Январь[[#This Row],[Расход топлива по норме, литр]],"") -> -4.017 | R24: =Январь[[#This Row],[Дата]] -> 2018-01-18 | U24: -50 | Y24: -2 | Z24: =Январь[[#This Row],[Дата]] -> 2018-01-18
A25: =IFERROR(DATEVALUE((COUNT($A$6:A24)+1)&$P$1&$I$4),"") -> 2018-01-19 | B25: Никляев В.А. | C25: 209516 | D25: 209618 | E25: =Январь[[#This Row],[Показание одометра машины на конец дня, км]]-Январь[[#This Row],[Показание одометра машины на начало дня, км]]+T25 -> 102 | F25: =SUMPRODUCT([1]январь!$E$4:$E$153*([1]январь!$G$4:$G$153=$O$4)*([1]январь!$D$4:$D$153=Январь[[#This Row],[Дата]])) -> 0 | G25: =IF(Январь[[#This Row],[Дата]]="","",M24) -> 500 | H25: 638 | I25: 640 | J25: =IF(W25="",Январь[[#This Row],[Показание счетчика моточасов спецоборудования на конец дня, м/ч]],Январь[[#This Row],[Показание счетчика моточасов спецоборудования на конец дня, м/ч]]+1)-Январь[[#This Row],[Показание счетчика моточасов спецоборудования на начало дня, м/ч]] -> 2 | K25: 1 | L25: =IF(Январь[[#This Row],[Работа спецоборудования за день, м/ч]]="","",Январь[[#This Row],[Работа спецоборудования за день, м/ч]]*$Z$2) -> 12.1 | M25: =IF(VLOOKUP([Дата],S$2:U$3,3),IFERROR(IF(U25="",Январь[[#This Row],[Выдано топливо, литр]],Январь[[#This Row],[Выдано топливо, литр]]+U25)+Январь[[#This Row],[Остаток топлива в баке на начало дня, литр]]-Январь[[#This Row],[Фактический расход топлива, литр]],""),"") -> 441 | N25: =ROUND((Январь[[#This Row],[Пройдено за день, км]]*0.01*$Y$2+Январь[[#This Row],[Расход топлива на работу спецоборудования, литр]]),3)+X25 -> 64.677 | O25: =ROUND(Январь[[#This Row],[Расход топлива по норме, литр]]/VLOOKUP([Дата],S$2:W$4,5),0)+Y25 -> 59 | P25: =IFERROR(Январь[[#This Row],[Фактический расход топлива, литр]]-Январь[[#This Row],[Расход топлива по норме, литр]],"") -> -5.677 | R25: =Январь[[#This Row],[Дата]] -> 2018-01-19 | Z25: =Январь[[#This Row],[Дата]] -> 2018-01-19
A26: =IFERROR(DATEVALUE((COUNT($A$6:A25)+1)&$P$1&$I$4),"") -> 2018-01-20 | C26: 209618 | D26: 209618 | E26: =Январь[[#This Row],[Показание одометра машины на конец дня, км]]-Январь[[#This Row],[Показание одометра машины на начало дня, км]]+T26 -> 0 | F26: =SUMPRODUCT([1]январь!$E$4:$E$153*([1]январь!$G$4:$G$153=$O$4)*([1]январь!$D$4:$D$153=Январь[[#This Row],[Дата]])) -> 0 | G26: =IF(Январь[[#This Row],[Дата]]="","",M25) -> 441 | H26: 640 | I26: 640 | J26: =IF(W26="",Январь[[#This Row],[Показание счетчика моточасов спецоборудования на конец дня, м/ч]],Январь[[#This Row],[Показание счетчика моточасов спецоборудования на конец дня, м/ч]]+1)-Январь[[#This Row],[Показание счетчика моточасов спецоборудования на начало дня, м/ч]] -> 0 | K26: 0 | L26: =IF(Январь[[#This Row],[Работа спецоборудования за день, м/ч]]="","",Январь[[#This Row],[Работа спецоборудования за день, м/ч]]*$Z$2) -> 0 | M26: =IF(VLOOKUP([Дата],S$2:U$3,3),IFERROR(IF(U26="",Январь[[#This Row],[Выдано топливо, литр]],Январь[[#This Row],[Выдано топливо, литр]]+U26)+Январь[[#This Row],[Остаток топлива в баке на начало дня, литр]]-Январь[[#This Row],[Фактический расход топлива, литр]],""),"") -> 441 | N26: =ROUND((Январь[[#This Row],[Пройдено за день, км]]*0.01*$Y$2+Январь[[#This Row],[Расход топлива на работу спецоборудования, литр]]),3)+X26 -> 0 | O26: =ROUND(Январь[[#This Row],[Расход топлива по норме, литр]]/VLOOKUP([Дата],S$2:W$4,5),0)+Y26 -> 0 | P26: =IFERROR(Январь[[#This Row],[Фактический расход топлива, литр]]-Январь[[#This Row],[Расход топлива по норме, литр]],"") -> 0 | R26: =Январь[[#This Row],[Дата]] -> 2018-01-20 | Z26: =Январь[[#This Row],[Дата]] -> 2018-01-20
A27: =IFERROR(DATEVALUE((COUNT($A$6:A26)+1)&$P$1&$I$4),"") -> 2018-01-21 | B27: Никляев В.А. | C27: 209618 | D27: 209646 | E27: =Январь[[#This Row],[Показание одометра машины на конец дня, км]]-Январь[[#This Row],[Показание одометра машины на начало дня, км]]+T27 -> 28 | F27: =SUMPRODUCT([1]январь!$E$4:$E$153*([1]январь!$G$4:$G$153=$O$4)*([1]январь!$D$4:$D$153=Январь[[#This Row],[Дата]])) -> 0 | G27: =IF(Январь[[#This Row],[Дата]]="","",M26) -> 441 | H27: 640 | I27: 643 | J27: =IF(W27="",Январь[[#This Row],[Показание счетчика моточасов спецоборудования на конец дня, м/ч]],Январь[[#This Row],[Показание счетчика моточасов спецоборудования на конец дня, м/ч]]+1)-Январь[[#This Row],[Показание счетчика моточасов спецоборудования на начало дня, м/ч]] -> 3 | K27: 2 | L27: =IF(Январь[[#This Row],[Работа спецоборудования за день, м/ч]]="","",Январь[[#This Row],[Работа спецоборудования за день, м/ч]]*$Z$2) -> 18.15 | M27: =IF(VLOOKUP([Дата],S$2:U$3,3),IFERROR(IF(U27="",Январь[[#This Row],[Выдано топливо, литр]],Январь[[#This Row],[Выдано топливо, литр]]+U27)+Январь[[#This Row],[Остаток топлива в баке на начало дня, литр]]-Январь[[#This Row],[Фактический расход топлива, литр]],""),"") -> 411 | N27: =ROUND((Январь[[#This Row],[Пройдено за день, км]]*0.01*$Y$2+Январь[[#This Row],[Расход топлива на работу спецоборудования, литр]]),3)+X27 -> 32.583 | O27: =ROUND(Январь[[#This Row],[Расход топлива по норме, литр]]/VLOOKUP([Дата],S$2:W$4,5),0)+Y27 -> 30 | P27: =IFERROR(Январь[[#This Row],[Фактический расход топлива, литр]]-Январь[[#This Row],[Расход топлива по норме, литр]],"") -> -2.583 | R27: =Январь[[#This Row],[Дата]] -> 2018-01-21 | Z27: =Январь[[#This Row],[Дата]] -> 2018-01-21
A28: =IFERROR(DATEVALUE((COUNT($A$6:A27)+1)&$P$1&$I$4),"") -> 2018-01-22 | B28: Никляев В.А. | C28: 209646 | D28: 209695 | E28: =Январь[[#This Row],[Показание одометра машины на конец дня, км]]-Январь[[#This Row],[Показание одометра машины на начало дня, км]]+T28 -> 49 | F28: =SUMPRODUCT([1]январь!$E$4:$E$153*([1]январь!$G$4:$G$153=$O$4)*([1]январь!$D$4:$D$153=Январь[[#This Row],[Дата]])) -> 0 | G28: =IF(Январь[[#This Row],[Дата]]="","",M27) -> 411 | H28: 643 | I28: 645 | J28: =IF(W28="",Январь[[#This Row],[Показание счетчика моточасов спецоборудования на конец дня, м/ч]],Январь[[#This Row],[Показание счетчика моточасов спецоборудования на конец дня, м/ч]]+1)-Январь[[#This Row],[Показание счетчика моточасов спецоборудования на начало дня, м/ч]] -> 2 | K28: 1 | L28: =IF(Январь[[#This Row],[Работа спецоборудования за день, м/ч]]="","",Январь[[#This Row],[Работа спецоборудования за день, м/ч]]*$Z$2) -> 12.1 | M28: =IF(VLOOKUP([Дата],S$2:U$3,3),IFERROR(IF(U28="",Январь[[#This Row],[Выдано топливо, литр]],Январь[[#This Row],[Выдано топливо, литр]]+U28)+Январь[[#This Row],[Остаток топлива в баке на начало дня, литр]]-Январь[[#This Row],[Фактический расход топлива, литр]],""),"") -> 377 | N28: =ROUND((Январь[[#This Row],[Пройдено за день, км]]*0.01*$Y$2+Январь[[#This Row],[Расход топлива на работу спецоборудования, литр]]),3)+X28 -> 37.358 | O28: =ROUND(Январь[[#This Row],[Расход топлива по норме, литр]]/VLOOKUP([Дата],S$2:W$4,5),0)+Y28 -> 34 | P28: =IFERROR(Январь[[#This Row],[Фактический расход топлива, литр]]-Январь[[#This Row],[Расход топлива по норме, литр]],"") -> -3.358 | R28: =Январь[[#This Row],[Дата]] -> 2018-01-22 | Z28: =Январь[[#This Row],[Дата]] -> 2018-01-22
A29: =IFERROR(DATEVALUE((COUNT($A$6:A28)+1)&$P$1&$I$4),"") -> 2018-01-23 | B29: Никляев В.А. | C29: 209695 | D29: 209719 | E29: =Январь[[#This Row],[Показание одометра машины на конец дня, км]]-Январь[[#This Row],[Показание одометра машины на начало дня, км]]+T29 -> 24 | F29: =SUMPRODUCT([1]январь!$E$4:$E$153*([1]январь!$G$4:$G$153=$O$4)*([1]январь!$D$4:$D$153=Январь[[#This Row],[Дата]])) -> 0 | G29: =IF(Январь[[#This Row],[Дата]]="","",M28) -> 377 | H29: 645 | I29: 647 | J29: =IF(W29="",Январь[[#This Row],[Показание счетчика моточасов спецоборудования на конец дня, м/ч]],Январь[[#This Row],[Показание счетчика моточасов спецоборудования на конец дня, м/ч]]+1)-Январь[[#This Row],[Показание счетчика моточасов спецоборудования на начало дня, м/ч]] -> 2 | K29: 1 | L29: =IF(Январь[[#This Row],[Работа спецоборудования за день, м/ч]]="","",Январь[[#This Row],[Работа спецоборудования за день, м/ч]]*$Z$2) -> 12.1 | M29: =IF(VLOOKUP([Дата],S$2:U$3,3),IFERROR(IF(U29="",Январь[[#This Row],[Выдано топливо, литр]],Январь[[#This Row],[Выдано топливо, литр]]+U29)+Январь[[#This Row],[Остаток топлива в баке на начало дня, литр]]-Январь[[#This Row],[Фактический расход топлива, литр]],""),"") -> 355 | N29: =ROUND((Январь[[#This Row],[Пройдено за день, км]]*0.01*$Y$2+Январь[[#This Row],[Расход топлива на работу спецоборудования, литр]]),3)+X29 -> 24.471 | O29: =ROUND(Январь[[#This Row],[Расход топлива по норме, литр]]/VLOOKUP([Дата],S$2:W$4,5),0)+Y29 -> 22 | P29: =IFERROR(Январь[[#This Row],[Фактический расход топлива, литр]]-Январь[[#This Row],[Расход топлива по норме, литр]],"") -> -2.471 | R29: =Январь[[#This Row],[Дата]] -> 2018-01-23 | Z29: =Январь[[#This Row],[Дата]] -> 2018-01-23
A30: =IFERROR(DATEVALUE((COUNT($A$6:A29)+1)&$P$1&$I$4),"") -> 2018-01-24 | B30: Никляев В.А. | C30: 209719 | D30: 210061 | E30: =Январь[[#This Row],[Показание одометра машины на конец дня, км]]-Январь[[#This Row],[Показание одометра машины на начало дня, км]]+T30 -> 342 | F30: =SUMPRODUCT([1]январь!$E$4:$E$153*([1]январь!$G$4:$G$153=$O$4)*([1]январь!$D$4:$D$153=Январь[[#This Row],[Дата]])) -> 0 | G30: =IF(Январь[[#This Row],[Дата]]="","",M29) -> 355 | H30: 647 | I30: 651 | J30: =IF(W30="",Январь[[#This Row],[Показание счетчика моточасов спецоборудования на конец дня, м/ч]],Январь[[#This Row],[Показание счетчика моточасов спецоборудования на конец дня, м/ч]]+1)-Январь[[#This Row],[Показание счетчика моточасов спецоборудования на начало дня, м/ч]] -> 4 | K30: 2 | L30: =IF(Январь[[#This Row],[Работа спецоборудования за день, м/ч]]="","",Январь[[#This Row],[Работа спецоборудования за день, м/ч]]*$Z$2) -> 24.2 | M30: =IF(VLOOKUP([Дата],S$2:U$3,3),IFERROR(IF(U30="",Январь[[#This Row],[Выдано топливо, литр]],Январь[[#This Row],[Выдано топливо, литр]]+U30)+Январь[[#This Row],[Остаток топлива в баке на начало дня, литр]]-Январь[[#This Row],[Фактический расход топлива, литр]],""),"") -> 173 | N30: =ROUND((Январь[[#This Row],[Пройдено за день, км]]*0.01*$Y$2+Январь[[#This Row],[Расход топлива на работу спецоборудования, литр]]),3)+X30 -> 200.487 | O30: =ROUND(Январь[[#This Row],[Расход топлива по норме, литр]]/VLOOKUP([Дата],S$2:W$4,5),0)+Y30 -> 182 | P30: =IFERROR(Январь[[#This Row],[Фактический расход топлива, литр]]-Январь[[#This Row],[Расход топлива по норме, литр]],"") -> -18.487 | R30: =Январь[[#This Row],[Дата]] -> 2018-01-24 | Z30: =Январь[[#This Row],[Дата]] -> 2018-01-24
A31: =IFERROR(DATEVALUE((COUNT($A$6:A30)+1)&$P$1&$I$4),"") -> 2018-01-25 | B31: Никляев В.А. | C31: 210061 | D31: 210300 | E31: =Январь[[#This Row],[Показание одометра машины на конец дня, км]]-Январь[[#This Row],[Показание одометра машины на начало дня, км]]+T31 -> 239 | F31: =SUMPRODUCT([1]январь!$E$4:$E$153*([1]январь!$G$4:$G$153=$O$4)*([1]январь!$D$4:$D$153=Январь[[#This Row],[Дата]])) -> 300 | G31: =IF(Январь[[#This Row],[Дата]]="","",M30) -> 173 | H31: 651 | I31: 656 | J31: =IF(W31="",Январь[[#This Row],[Показание счетчика моточасов спецоборудования на конец дня, м/ч]],Январь[[#This Row],[Показание счетчика моточасов спецоборудования на конец дня, м/ч]]+1)-Январь[[#This Row],[Показание счетчика моточасов спецоборудования на начало дня, м/ч]] -> 5 | K31: 3 | L31: =IF(Январь[[#This Row],[Работа спецоборудования за день, м/ч]]="","",Январь[[#This Row],[Работа спецоборудования за день, м/ч]]*$Z$2) -> 30.25 | M31: =IF(VLOOKUP([Дата],S$2:U$3,3),IFERROR(IF(U31="",Январь[[#This Row],[Выдано топливо, литр]],Январь[[#This Row],[Выдано топливо, литр]]+U31)+Январь[[#This Row],[Остаток топлива в баке на начало дня, литр]]-Январь[[#This Row],[Фактический расход топлива, литр]],""),"") -> 334 | N31: =ROUND((Январь[[#This Row],[Пройдено за день, км]]*0.01*$Y$2+Январь[[#This Row],[Расход топлива на работу спецоборудования, литр]]),3)+X31 -> 153.445 | O31: =ROUND(Январь[[#This Row],[Расход топлива по норме, литр]]/VLOOKUP([Дата],S$2:W$4,5),0)+Y31 -> 139 | P31: =IFERROR(Январь[[#This Row],[Фактический расход топлива, литр]]-Январь[[#This Row],[Расход топлива по норме, литр]],"") -> -14.445 | R31: =Январь[[#This Row],[Дата]] -> 2018-01-25 | Z31: =Январь[[#This Row],[Дата]] -> 2018-01-25
A32: =IFERROR(DATEVALUE((COUNT($A$6:A31)+1)&$P$1&$I$4),"") -> 2018-01-26 | B32: Никляев В.А. | C32: 210300 | D32: 210327 | E32: =Январь[[#This Row],[Показание одометра машины на конец дня, км]]-Январь[[#This Row],[Показание одометра машины на начало дня, км]]+T32 -> 27 | F32: =SUMPRODUCT([1]январь!$E$4:$E$153*([1]январь!$G$4:$G$153=$O$4)*([1]январь!$D$4:$D$153=Январь[[#This Row],[Дата]])) -> 0 | G32: =IF(Январь[[#This Row],[Дата]]="","",M31) -> 334 | H32: 656 | I32: 658 | J32: =IF(W32="",Январь[[#This Row],[Показание счетчика моточасов спецоборудования на конец дня, м/ч]],Январь[[#This Row],[Показание счетчика моточасов спецоборудования на конец дня, м/ч]]+1)-Январь[[#This Row],[Показание счетчика моточасов спецоборудования на начало дня, м/ч]] -> 2 | K32: 1 | L32: =IF(Январь[[#This Row],[Работа спецоборудования за день, м/ч]]="","",Январь[[#This Row],[Работа спецоборудования за день, м/ч]]*$Z$2) -> 12.1 | M32: =IF(VLOOKUP([Дата],S$2:U$3,3),IFERROR(IF(U32="",Январь[[#This Row],[Выдано топливо, литр]],Январь[[#This Row],[Выдано топливо, литр]]+U32)+Январь[[#This Row],[Остаток топлива в баке на начало дня, литр]]-Январь[[#This Row],[Фактический расход топлива, литр]],""),"") -> 310 | N32: =ROUND((Январь[[#This Row],[Пройдено за день, км]]*0.01*$Y$2+Январь[[#This Row],[Расход топлива на работу спецоборудования, литр]]),3)+X32 -> 26.017 | O32: =ROUND(Январь[[#This Row],[Расход топлива по норме, литр]]/VLOOKUP([Дата],S$2:W$4,5),0)+Y32 -> 24 | P32: =IFERROR(Январь[[#This Row],[Фактический расход топлива, литр]]-Январь[[#This Row],[Расход топлива по норме, литр]],"") -> -2.017 | R32: =Январь[[#This Row],[Дата]] -> 2018-01-26 | Z32: =Январь[[#This Row],[Дата]] -> 2018-01-26
A33: =IFERROR(DATEVALUE((COUNT($A$6:A32)+1)&$P$1&$I$4),"") -> 2018-01-27 | B33: Никляев В.А. | C33: 210327 | D33: 210354 | E33: =Январь[[#This Row],[Показание одометра машины на конец дня, км]]-Январь[[#This Row],[Показание одометра машины на начало дня, км]]+T33 -> 27 | F33: =SUMPRODUCT([1]январь!$E$4:$E$153*([1]январь!$G$4:$G$153=$O$4)*([1]январь!$D$4:$D$153=Январь[[#This Row],[Дата]])) -> 0 | G33: =IF(Январь[[#This Row],[Дата]]="","",M32) -> 310 | H33: 658 | I33: 660 | J33: =IF(W33="",Январь[[#This Row],[Показание счетчика моточасов спецоборудования на конец дня, м/ч]],Январь[[#This Row],[Показание счетчика моточасов спецоборудования на конец дня, м/ч]]+1)-Январь[[#This Row],[Показание счетчика моточасов спецоборудования на начало дня, м/ч]] -> 2 | K33: 1 | L33: =IF(Январь[[#This Row],[Работа спецоборудования за день, м/ч]]="","",Январь[[#This Row],[Работа спецоборудования за день, м/ч]]*$Z$2) -> 12.1 | M33: =IF(VLOOKUP([Дата],S$2:U$3,3),IFERROR(IF(U33="",Январь[[#This Row],[Выдано топливо, литр]],Январь[[#This Row],[Выдано топливо, литр]]+U33)+Январь[[#This Row],[Остаток топлива в баке на начало дня, литр]]-Январь[[#This Row],[Фактический расход топлива, литр]],""),"") -> 286 | N33: =ROUND((Январь[[#This Row],[Пройдено за день, км]]*0.01*$Y$2+Январь[[#This Row],[Расход топлива на работу спецоборудования, литр]]),3)+X33 -> 26.017 | O33: =ROUND(Январь[[#This Row],[Расход топлива по норме, литр]]/VLOOKUP([Дата],S$2:W$4,5),0)+Y33 -> 24 | P33: =IFERROR(Январь[[#This Row],[Фактический расход топлива, литр]]-Январь[[#This Row],[Расход топлива по норме, литр]],"") -> -2.017 | R33: =Январь[[#This Row],[Дата]] -> 2018-01-27 | Z33: =Январь[[#This Row],[Дата]] -> 2018-01-27
A34: =IFERROR(DATEVALUE((COUNT($A$6:A33)+1)&$P$1&$I$4),"") -> 2018-01-28 | B34: Никляев В.А. | C34: 210354 | D34: 210448 | E34: =Январь[[#This Row],[Показание одометра машины на конец дня, км]]-Январь[[#This Row],[Показание одометра машины на начало дня, км]]+T34 -> 94 | F34: =SUMPRODUCT([1]январь!$E$4:$E$153*([1]январь!$G$4:$G$153=$O$4)*([1]январь!$D$4:$D$153=Январь[[#This Row],[Дата]])) -> 0 | G34: =IF(Январь[[#This Row],[Дата]]="","",M33) -> 286 | H34: 660 | I34: 665 | J34: =IF(W34="",Январь[[#This Row],[Показание счетчика моточасов спецоборудования на конец дня, м/ч]],Январь[[#This Row],[Показание счетчика моточасов спецоборудования на конец дня, м/ч]]+1)-Январь[[#This Row],[Показание счетчика моточасов спецоборудования на начало дня, м/ч]] -> 5 | K34: 3 | L34: =IF(Январь[[#This Row],[Работа спецоборудования за день, м/ч]]="","",Январь[[#This Row],[Работа спецоборудования за день, м/ч]]*$Z$2) -> 30.25 | M34: =IF(VLOOKUP([Дата],S$2:U$3,3),IFERROR(IF(U34="",Январь[[#This Row],[Выдано топливо, литр]],Январь[[#This Row],[Выдано топливо, литр]]+U34)+Январь[[#This Row],[Остаток топлива в баке на начало дня, литр]]-Январь[[#This Row],[Фактический расход топлива, литр]],""),"") -> 215 | N34: =ROUND((Январь[[#This Row],[Пройдено за день, км]]*0.01*$Y$2+Январь[[#This Row],[Расход топлива на работу спецоборудования, литр]]),3)+X34 -> 78.703 | O34: =ROUND(Январь[[#This Row],[Расход топлива по норме, литр]]/VLOOKUP([Дата],S$2:W$4,5),0)+Y34 -> 71 | P34: =IFERROR(Январь[[#This Row],[Фактический расход топлива, литр]]-Январь[[#This Row],[Расход топлива по норме, литр]],"") -> -7.703 | R34: =Январь[[#This Row],[Дата]] -> 2018-01-28 | Z34: =Январь[[#This Row],[Дата]] -> 2018-01-28
A35: =IFERROR(DATEVALUE((COUNT($A$6:A34)+1)&$P$1&$I$4),"") -> 2018-01-29 | B35: Никляев В.А. | C35: 210448 | D35: 210582 | E35: =Январь[[#This Row],[Показание одометра машины на конец дня, км]]-Январь[[#This Row],[Показание одометра машины на начало дня, км]]+T35 -> 134 | F35: =SUMPRODUCT([1]январь!$E$4:$E$153*([1]январь!$G$4:$G$153=$O$4)*([1]январь!$D$4:$D$153=Январь[[#This Row],[Дата]])) -> 370 | G35: =IF(Январь[[#This Row],[Дата]]="","",M34) -> 215 | H35: 665 | I35: 667 | J35: =IF(W35="",Январь[[#This Row],[Показание счетчика моточасов спецоборудования на конец дня, м/ч]],Январь[[#This Row],[Показание счетчика моточасов спецоборудования на конец дня, м/ч]]+1)-Январь[[#This Row],[Показание счетчика моточасов спецоборудования на начало дня, м/ч]] -> 2 | K35: 3 | L35: =IF(Январь[[#This Row],[Работа спецоборудования за день, м/ч]]="","",Январь[[#This Row],[Работа спецоборудования за день, м/ч]]*$Z$2) -> 12.1 | M35: =IF(VLOOKUP([Дата],S$2:U$3,3),IFERROR(IF(U35="",Январь[[#This Row],[Выдано топливо, литр]],Январь[[#This Row],[Выдано топливо, литр]]+U35)+Январь[[#This Row],[Остаток топлива в баке на начало дня, литр]]-Январь[[#This Row],[Фактический расход топлива, литр]],""),"") -> 343 | N35: =ROUND((Январь[[#This Row],[Пройдено за день, км]]*0.01*$Y$2+Январь[[#This Row],[Расход топлива на работу спецоборудования, литр]]),3)+X35 -> 81.172 | O35: =ROUND(Январь[[#This Row],[Расход топлива по норме, литр]]/VLOOKUP([Дата],S$2:W$4,5),0)+Y35 -> 74 | P35: =IFERROR(Январь[[#This Row],[Фактический расход топлива, литр]]-Январь[[#This Row],[Расход топлива по норме, литр]],"") -> -7.172 | R35: =Январь[[#This Row],[Дата]] -> 2018-01-29 | U35: -168 | Z35: =Январь[[#This Row],[Дата]] -> 2018-01-29
A36: =IFERROR(DATEVALUE((COUNT($A$6:A35)+1)&$P$1&$I$4),"") -> 2018-01-30 | B36: Никляев В.А. | C36: 210582 | D36: 210696 | E36: =Январь[[#This Row],[Показание одометра машины на конец дня, км]]-Январь[[#This Row],[Показание одометра машины на начало дня, км]]+T36 -> 126 | F36: =SUMPRODUCT([1]январь!$E$4:$E$153*([1]январь!$G$4:$G$153=$O$4)*([1]январь!$D$4:$D$153=Январь[[#This Row],[Дата]])) -> 0 | G36: =IF(Январь[[#This Row],[Дата]]="","",M35) -> 343 | H36: 667 | I36: 670 | J36: =IF(W36="",Январь[[#This Row],[Показание счетчика моточасов спецоборудования на конец дня, м/ч]],Январь[[#This Row],[Показание счетчика моточасов спецоборудования на конец дня, м/ч]]+1)-Январь[[#This Row],[Показание счетчика моточасов спецоборудования на начало дня, м/ч]] -> 3 | K36: 2 | L36: =IF(Январь[[#This Row],[Работа спецоборудования за день, м/ч]]="","",Январь[[#This Row],[Работа спецоборудования за день, м/ч]]*$Z$2) -> 18.15 | M36: =IF(VLOOKUP([Дата],S$2:U$3,3),IFERROR(IF(U36="",Январь[[#This Row],[Выдано топливо, литр]],Январь[[#This Row],[Выдано топливо, литр]]+U36)+Январь[[#This Row],[Остаток топлива в баке на начало дня, литр]]-Январь[[#This Row],[Фактический расход топлива, литр]],""),"") -> 267 | N36: =ROUND((Январь[[#This Row],[Пройдено за день, км]]*0.01*$Y$2+Январь[[#This Row],[Расход топлива на работу спецоборудования, литр]]),3)+X36 -> 83.098 | O36: =ROUND(Январь[[#This Row],[Расход топлива по норме, литр]]/VLOOKUP([Дата],S$2:W$4,5),0)+Y36 -> 76 | P36: =IFERROR(Январь[[#This Row],[Фактический расход топлива, литр]]-Январь[[#This Row],[Расход топлива по норме, литр]],"") -> -7.098 | R36: =Январь[[#This Row],[Дата]] -> 2018-01-30 | T36: 12 | Y36: 1 | Z36: =Январь[[#This Row],[Дата]] -> 2018-01-30
A37: =IFERROR(DATEVALUE((COUNT($A$6:A36)+1)&$P$1&$I$4),"") -> 2018-01-31 | B37: Никляев В.А. | C37: 210696 | D37: 210723 | E37: =Январь[[#This Row],[Показание одометра машины на конец дня, км]]-Январь[[#This Row],[Показание одометра машины на начало дня, км]]+T37 -> 27 | F37: =SUMPRODUCT([1]январь!$E$4:$E$153*([1]январь!$G$4:$G$153=$O$4)*([1]январь!$D$4:$D$153=Январь[[#This Row],[Дата]])) -> 250 | G37: =IF(Январь[[#This Row],[Дата]]="","",M36) -> 267 | H37: 670 | I37: 671 | J37: =IF(W37="",Январь[[#This Row],[Показание счетчика моточасов спецоборудования на конец дня, м/ч]],Январь[[#This Row],[Показание счетчика моточасов спецоборудования на конец дня, м/ч]]+1)-Январь[[#This Row],[Показание счетчика моточасов спецоборудования на начало дня, м/ч]] -> 1 | K37: 1 | L37: =IF(Январь[[#This Row],[Работа спецоборудования за день, м/ч]]="","",Январь[[#This Row],[Работа спецоборудования за день, м/ч]]*$Z$2) -> 6.05 | M37: =IF(VLOOKUP([Дата],S$2:U$3,3),IFERROR(IF(U37="",Январь[[#This Row],[Выдано топливо, литр]],Январь[[#This Row],[Выдано топливо, литр]]+U37)+Январь[[#This Row],[Остаток топлива в баке на начало дня, литр]]-Январь[[#This Row],[Фактический расход топлива, литр]],""),"") -> 500 | N37: =ROUND((Январь[[#This Row],[Пройдено за день, км]]*0.01*$Y$2+Январь[[#This Row],[Расход топлива на работу спецоборудования, литр]]),3)+X37 -> 19.97 | O37: =ROUND(Январь[[#This Row],[Расход топлива по норме, литр]]/VLOOKUP([Дата],S$2:W$4,5),0)+Y37 -> 17 | P37: =IFERROR(Январь[[#This Row],[Фактический расход топлива, литр]]-Январь[[#This Row],[Расход топлива по норме, литр]],"") -> -2.97 | R37: =Январь[[#This Row],[Дата]] -> 2018-01-31 | X37: 0.003 | Y37: -1 | Z37: =Январь[[#This Row],[Дата]] -> 2018-01-31
A38: Итог | E38: =SUBTOTAL(109,[Пройдено за день, км]) -> 1711 | F38: =SUBTOTAL(109,[Выдано топливо, литр]) -> 1300 | J38: =SUBTOTAL(109,[Работа спецоборудования за день, м/ч]) -> 51 | K38: =SUBTOTAL(109,[Количество ходок]) -> 33 | L38: =SUBTOTAL(109,[Расход топлива на работу спецоборудования, литр]) -> 308.55 | N38: =SUBTOTAL(109,[Расход топлива по норме, литр]) -> 1190.503 | O38: =SUBTOTAL(109,[Фактический расход топлива, литр]) -> 1082 | P38: =SUBTOTAL(109,[Отклонение от нормы (Перерасход(+), экономия(-)), литр]) -> -108.503 | R38: 1-я пол. | S38: =SUMIFS(S$7:S$37,INDIRECT("Январь[Дата]"),">="&$S$2,INDIRECT("Январь[Дата]"),"<="&$T$2)+IF(MONTH($T$2)<>MONTH($S$2),INDIRECT(TEXT($A$7-1,"ММММ")&"!F38")-SUM(INDIRECT(TEXT($A$7-1,"ММММ")&"!V1:V2"))) -> 0 | T38: =SUMIFS(T$7:T$37,INDIRECT("Январь[Дата]"),">="&$S$2,INDIRECT("Январь[Дата]"),"<="&$T$2)+IF(MONTH($T$2)<>MONTH($S$2),INDIRECT(TEXT($A$7-1,"ММММ")&"!F38")-SUM(INDIRECT(TEXT($A$7-1,"ММММ")&"!V1:V2"))) -> 0 | U38: -50 | V38: 0 | W38: 0 | X38: 0 | Y38: -1 | Z38: 1-я пол.
K39: =SUMIFS(K7:K37,A7:A37,">="&$S$2,A7:A37,"<="&$T$2) -> 12 | R39: 2-я пол. | S39: =SUMIFS(S$7:S$37,INDIRECT("Январь[Дата]"),">="&$S$3,INDIRECT("Январь[Дата]"),"<="&$T$3)+IF(MONTH($T$3)<>MONTH($S$3),INDIRECT(TEXT($A$7-1,"ММММ")&"!F38")-SUM(INDIRECT(TEXT($A$7-1,"ММММ")&"!V1:V2"))) -> 0 | T39: =SUMIFS(T$7:T$37,INDIRECT("Январь[Дата]"),">="&$S$3,INDIRECT("Январь[Дата]"),"<="&$T$3)+IF(MONTH($T$3)<>MONTH($S$3),INDIRECT(TEXT($A$7-1,"ММММ")&"!F38")-SUM(INDIRECT(TEXT($A$7-1,"ММММ")&"!V1:V2"))) -> 12 | U39: -168 | V39: 0 | W39: 0 | X39: 0.003 | Y39: 0 | Z39: 2-я пол.
K40: =SUMIFS(K7:K37,A7:A37,">="&$S$3,A7:A37,"<="&$T$3) -> 21

Sheet ТС
G1: Зима : | H1: 01.11 - 31.03 | L1: Зима : | M1: 01.11 - 31.03 | P1: Расчет максимальной нормы расхода ДТ (литр/100км)
G2: Лето: | H2: 01.04 - 30.10 | L2: Лето: | M2: 01.04 - 30.10
G3: доп.коэфф-т к норме | L3: доп.коэфф-т к норме
A4: № п/п | B4: Номер гос.регистрации / Заводской номер | C4: Километраж, км | D4: Спецоборудование, м/ч | E4: Топливо, л | F4: Базовая норма расхода на 100 км | G4: Зима | H4: Лето | I4: Итога норма а/м ЗИМА | J4: Итога норма а/м ЛЕТО | K4: Базовая норма расхода на 1 мото/час | L4: "Зима" | M4: "Лето" | N4: Итога норма а/м "ЗИМА" | O4: Итога норма а/м "ЛЕТО" | P4: Норма на 100 км, литров | Q4: движение с манипулятором | R4: Тоннаж | S4: Литры | T4: На движение с грузом | U4: Тоннаж1 | V4: К-т загрузки | W4: ИТОГ | X4: 25% за работу в городе с населением свыше 3 млн. человек | Y4: 10 % за работу зимой
A5: 1 | B5: Норма 1 | C5: 209024 | D5: 620 | E5: 500 | F5: 46.86 | G5: 10 | H5: 0 | I5: =F5*(100+G5)% -> 51.546 | J5: =F5*(100+H5)% -> 46.86 | K5: 5.5 | L5: 10 | M5: 0 | N5: =K5*(100+L5)% -> 6.05 | O5: =K5*(100+M5)% -> 5.5 | P5: 32.2 | Q5: =R5*S5 -> 2.938 | R5: 2.26 | S5: 1.3 | T5: =U5*V5*S5 -> 5.2 | U5: 8 | V5: 0.5 | W5: =P5+Q5+T5 -> 40.338 | X5: =W5*25%+W5 -> 50.4225 | Y5: =W5*10%+X5 -> 54.4563
A6: 2 | B6: Норма 2 | E6: 500 | F6: =F5-F5*5% -> 44.517 | G6: 10 | H6: 0 | I6: 48.9687 | J6: =F6*(100+H6)% -> 44.517 | K6: =K5-K5*5% -> 5.225 | L6: 10 | M6: 0 | N6: 5.7475 | O6: 5.225 | P6: 32.2 | Q6: 2.938 | R6: 2.26 | S6: 1.3 | T6: 5.2 | U6: 8 | V6: 0.5 | W6: 40.338 | X6: 50.4225 | Y6: 54.4563
A7: 3 | B7: Норма 3 | E7: 500 | F7: =F5-F5*10% -> 42.174 | G7: 10 | H7: 0 | I7: 46.3914 | J7: 42.174 | K7: =K5-K5*10% -> 4.95 | L7: 10 | M7: 0 | N7: 5.445 | O7: 4.95 | P7: 32.2 | Q7: 2.938 | R7: 2.26 | S7: 1.3 | T7: 5.2 | U7: 8 | V7: 0.5 | W7: 40.338 | X7: 50.4225 | Y7: 54.4563
B11: Зима
B12: Лето
B14: Январь
B15: Февраль
B16: Март
B17: Апрель
B18: Май
B19: Июнь
B20: Июль
B21: Август
B22: Сентябрь
B23: Октябрь
B24: Ноябрь
B25: Декабрь
B27: Норма 1
B28: Норма 2
B29: Норма 3

Sheet Сотрудники
B1: Ф.И.О.
B2: Никляев В.А.
B3: Ильин А.Г.
B4: Малышев О.С.
B5: Кобалян М.В.
